bitfinex/quotes_SOLUSD_20250527
["timestamp","ask_amount","ask_price","bid_price","bid_amount"]
[1748370361174,22.50199799,178.7,178.66,21.10300527]
[1748370362262,0.55931539,178.79,178.7,6.2445]
[1748370362472,0.55931539,178.79,178.76,21.10300527]
[1748370362988,0.55931539,178.79,178.77,21.10300527]
[1748370363202,0.55927787,178.81,178.77,21.10300527]
[1748370363573,21.66228314,178.81,178.76,21.10300527]
[1748370366068,0.55927787,178.81,178.77,21.10300527]
[1748370370676,0.55927787,178.81,178.78,21.10300527]
[1748370370875,0.55927787,178.81,178.79,21.10300527]
[1748370371788,19.20883915,178.83,178.79,21.10300527]
[1748370372186,19.20883915,178.83,178.75,1.5836]
[1748370372500,18.64964886,178.81,178.77,21.10300527]
[1748370372807,18.64964886,178.82,178.78,21.10300527]
[1748370373397,18.64964886,178.82,178.75,1.5836]
[1748370373598,39.75265413,178.82,178.77,21.10300527]
[1748370373776,1.95738492,178.81,178.77,21.10300527]
[1748370374400,23.06039019,178.81,178.77,21.10300527]
[1748370374610,21.10300527,178.79,178.74,21.10300527]
[1748370375996,0.55934668,178.78,178.74,21.10300527]
[1748370376702,21.66235195,178.78,178.73,21.10300527]
[1748370377393,23.06065102,178.79,178.74,21.10300527]
[1748370377791,1.95764575,178.79,178.71,37.9324]
[1748370378106,23.06065102,178.79,178.74,21.10300527]
[1748370378413,23.06065102,178.79,178.75,21.10300527]
[1748370380317,39.75265413,178.78,178.73,21.10300527]
[1748370382137,23.06082816,178.77,178.71,1.5124]
[1748370382286,21.10300527,178.76,178.71,22.61540527]
[1748370382801,23.06082816,178.77,178.72,21.10300527]
[1748370386432,0.55944055,178.75,178.72,21.10300527]
[1748370386928,0.55944055,178.75,178.73,21.10300527]
[1748370388838,0.55937797,178.77,178.73,21.10300527]
[1748370392347,0.55937797,178.77,178.74,21.10300527]
[1748370393249,0.55937797,178.77,178.73,21.10300527]
[1748370395356,27.39826808,178.8,178.71,1.5124]
[1748370395556,0.55931539,178.79,178.76,21.10300527]
[1748370396639,0.55931539,178.79,178.75,21.10300527]
[1748370399338,0.55931539,178.79,178.76,21.10300527]
[1748370399540,0.55931539,178.79,178.75,21.10300527]
[1748370399945,21.10300527,178.78,178.73,21.10300527]
[1748370400149,18.64964886,178.78,178.74,21.10300527]
[1748370401265,0.55937797,178.77,178.74,21.10300527]
[1748370401434,0.55928411,178.8,178.76,21.10300527]
[1748370401757,0.55928411,178.8,178.74,21.10300527]
[1748370401758,0.55928411,178.8,178.78,21.10300527]
[1748370402128,0.55928411,178.8,178.77,21.10300527]
[1748370403138,20.60703378,178.81,178.77,21.10300527]
[1748370403461,41.71003905,178.81,178.75,21.10300527]
[1748370403632,18.64964886,178.79,178.75,21.10300527]
[1748370403833,18.64964886,178.79,178.73,36.16]
[1748370404055,21.10300527,178.79,178.74,21.10300527]
[1748370405074,18.64964886,178.8,178.74,21.10300527]
[1748370405075,39.75265413,178.8,178.74,21.10300527]
[1748370405376,23.06060915,178.79,178.74,21.10300527]
[1748370405750,18.64964886,178.78,178.73,21.10300527]
[1748370406366,18.64964886,178.78,178.72,36.14]
[1748370406564,18.64964886,178.78,178.73,21.10300527]
[1748370406934,18.64964886,178.78,178.71,63.6124]
[1748370406935,18.64964886,178.78,178.74,21.10300527]
[1748370407268,0.55937797,178.77,178.75,21.10300527]
[1748370413187,0.55937797,178.77,178.74,21.10300527]
[1748370413749,0.55937797,178.77,178.72,36.1]
[1748370413971,0.55937797,178.77,178.74,21.10300527]
[1748370414470,0.55937797,178.77,178.75,21.10300527]
[1748370415887,0.55937797,178.77,178.74,21.10300527]
[1748370416051,0.55937797,178.77,178.74,13.50394876]
[1748370417065,1.95782289,178.77,178.7,6.2445]
[1748370417287,13.50394876,178.75,178.7,13.50394876]
[1748370417453,32.15359762,178.76,178.7,13.50394876]
[1748370417655,18.64964886,178.76,178.71,13.50394876]
[1748370418070,32.15359762,178.76,178.71,13.50394876]
[1748370418288,32.15359762,178.76,178.68,5.40800854]
[1748370418487,32.15359762,178.76,178.71,13.50394876]
[1748370419163,0.55944055,178.75,178.68,5.40800854]
[1748370419467,0.55944055,178.75,178.71,13.50394876]
[1748370419674,0.55944055,178.75,178.72,13.50394876]
[1748370419978,0.55944055,178.75,178.72,21.1069553]
[1748370420770,0.55944055,178.75,178.73,21.1069553]
[1748370421288,0.55937797,178.77,178.73,21.1069553]
[1748370421879,0.55937797,178.77,178.74,21.1069553]
[1748370423575,0.55934668,178.78,178.74,21.1069553]
[1748370424797,0.55934668,178.78,178.75,21.1069553]
[1748370425798,0.55931539,178.79,178.75,21.1069553]
[1748370428207,21.66627069,178.79,178.74,21.1069553]
[1748370428890,23.06455918,178.79,178.74,21.1069553]
[1748370430107,21.1069553,178.78,178.72,7.8581]
[1748370430295,21.1069553,178.77,178.72,27.3523553]
[1748370430803,21.1069553,178.78,178.73,21.1069553]
[1748370431183,0.55937797,178.77,178.73,21.1069553]
[1748370432603,0.55937797,178.77,178.72,6.2454]
[1748370432784,0.55937797,178.77,178.73,21.1069553]
[1748370434311,1.95782289,178.77,178.73,21.1069553]
[1748370434907,1.95782289,178.77,178.74,21.1069553]
[1748370435693,0.55937797,178.77,178.74,21.1069553]
[1748370436597,0.55934668,178.78,178.74,21.1069553]
[1748370439214,1.95771338,178.78,178.72,6.2454]
[1748370439396,23.06466868,178.78,178.73,21.1069553]
[1748370440409,1.95771338,178.78,178.73,21.1069553]
[1748370440613,1.95771338,178.78,178.72,6.2454]
[1748370440820,1.95771338,178.78,178.74,21.1069553]
[1748370441898,1.95771338,178.78,178.74,13.50435996]
[1748370445233,0.55934668,178.78,178.75,13.50435996]
[1748370445394,0.55934668,178.78,178.72,32.2454]
[1748370445395,0.55934668,178.78,178.76,13.50435996]
[1748370446293,1.9574944,178.8,178.76,13.50435996]
[1748370447501,15.46185436,178.8,178.75,13.50435996]
[1748370448033,1.9574944,178.8,178.77,13.50435996]
[1748370448340,1.39821029,178.8,178.76,13.50435996]
[1748370449041,14.90257025,178.8,178.72,32.2454]
[1748370449238,14.90257025,178.8,178.75,13.50435996]
[1748370450106,1.39821029,178.8,178.76,13.50435996]
[1748370450911,1.39821029,178.8,178.77,13.50435996]
[1748370451833,1.39821029,178.8,178.74,1.6615]
[1748370451834,0.55925283,178.81,178.78,13.50435996]
[1748370452038,0.55925283,178.81,178.74,61.27365059]
[1748370452227,0.55925283,178.81,178.78,13.50435996]
[1748370452612,0.55925283,178.81,178.77,13.50435996]
[1748370453036,0.55925283,178.81,178.74,7.07472127]
[1748370453238,0.55925283,178.81,178.77,13.50435996]
[1748370455238,0.55922156,178.82,178.77,13.50435996]
[1748370455541,0.55922156,178.82,178.74,7.07472127]
[1748370455542,0.55922156,178.82,178.78,13.50435996]
[1748370456317,24.82238961,178.83,178.78,13.50435996]
[1748370456845,13.50435996,178.82,178.78,13.50435996]
[1748370458144,15.46163542,178.82,178.78,13.50435996]
[1748370458315,15.46163542,178.82,178.77,13.50435996]
[1748370458515,1.95727546,178.82,178.78,13.50435996]
[1748370458748,15.46163542,178.82,178.78,13.50435996]
[1748370464860,1.95727546,178.82,178.78,13.50435996]
[1748370465021,1.95727546,178.82,178.79,13.50435996]
[1748370466750,0.55922156,178.82,178.79,13.50435996]
[1748370468425,1.95718378,178.83,178.79,13.50435996]
[1748370470370,1.95718378,178.83,178.8,13.50435996]
[1748370470652,0.55919029,178.83,178.81,13.50435996]
[1748370470874,15.46152598,178.83,178.78,6.635]
[1748370471037,0.55919029,178.83,178.8,13.50435996]
[1748370471550,0.55919029,178.83,178.78,6.635]
[1748370471736,0.55912776,178.85,178.82,13.50435996]
[1748370471929,0.55912776,178.85,178.78,95.635]
[1748370472133,0.55912776,178.85,178.81,13.50435996]
[1748370472342,0.5590965,178.86,178.83,13.50435996]
[1748370472936,0.5590965,178.86,178.82,13.50435996]
[1748370473252,0.5590965,178.86,178.78,101.22840898]
[1748370473253,0.5590965,178.86,178.78,95.635]
[1748370473466,0.5590965,178.86,178.82,13.50435996]
[1748370474925,0.5590965,178.86,178.83,13.50435996]
[1748370476153,13.50435996,178.86,178.82,13.50435996]
[1748370476568,13.50435996,178.86,178.78,95.635]
[1748370476734,13.50435996,178.86,178.82,13.50435996]
[1748370477671,13.50435996,178.86,178.78,95.635]
[1748370477960,0.55912776,178.85,178.82,13.50435996]
[1748370479840,1.95675354,178.87,178.82,13.50435996]
[1748370480264,15.4611135,178.87,178.82,13.50435996]
[1748370480565,15.4611135,178.87,178.83,13.50435996]
[1748370482636,15.4611135,178.87,178.82,13.50435996]
[1748370482848,1.95675354,178.87,178.82,13.50435996]
[1748370483160,14.90204826,178.87,178.82,13.50435996]
[1748370485778,13.50435996,178.86,178.81,13.50435996]
[1748370485948,13.50435996,178.83,178.78,109.13935996]
[1748370486139,13.50435996,178.83,178.78,20.13935996]
[1748370486345,13.50435996,178.81,178.74,48.82082127]
[1748370486560,13.50435996,178.81,178.76,13.50435996]
[1748370486759,1.5003,178.86,178.75,13.50435996]
[1748370486760,13.50435996,178.8,178.75,13.50435996]
[1748370486957,18.64964886,178.83,178.74,13.16082127]
[1748370486958,13.50435996,178.77,178.74,11.49932127]
[1748370487169,13.50435996,178.75,178.74,5.41322127]
[1748370487664,32.15400882,178.75,178.74,5.41322127]
[1748370487866,72.21780933,178.75,178.74,5.41322127]
[1748370488273,112.73088921,178.75,178.74,5.41322127]
[1748370489260,18.64964886,178.74,178.62,35.7]
[1748370489471,13.50435996,178.69,178.64,13.50435996]
[1748370489771,13.50435996,178.7,178.65,13.50435996]
[1748370490070,0.55950316,178.73,178.69,21.12007991]
[1748370491468,21.12007991,178.72,178.68,21.12007991]
[1748370491858,21.67958307,178.73,178.68,21.12007991]
[1748370492085,21.67958307,178.73,178.65,26.0]
[1748370492086,0.55950316,178.73,178.69,21.12007991]
[1748370493903,0.55950316,178.73,178.7,21.12007991]
[1748370494166,0.55944055,178.75,178.71,21.12007991]
[1748370494373,21.67952046,178.75,178.71,21.12007991]
[1748370494672,0.55944055,178.75,178.71,21.12007991]
[1748370494866,21.67952046,178.75,178.71,21.12007991]
[1748370496361,21.67952046,178.75,178.7,21.12007991]
[1748370497073,21.67952046,178.75,178.71,21.12007991]
[1748370500682,23.07812185,178.75,178.7,21.12007991]
[1748370501363,1.95804194,178.75,178.71,21.12007991]
[1748370501552,23.07812185,178.75,178.71,21.12007991]
[1748370503291,1.95804194,178.75,178.71,21.12007991]
[1748370505261,0.55944055,178.75,178.71,21.12007991]
[1748370505459,0.55944055,178.75,178.69,6.1776]
[1748370505460,0.55944055,178.75,178.73,21.12007991]
[1748370505770,0.55944055,178.75,178.72,21.12007991]
[1748370505956,0.55944055,178.75,178.71,20.82307991]
[1748370509167,0.55944055,178.75,178.72,21.12007991]
[1748370510981,0.55940926,178.76,178.72,21.12007991]
[1748370511697,0.55938847,178.77,178.74,21.12007991]
[1748370512557,0.55938847,178.77,178.75,21.12007991]
[1748370513283,0.55931539,178.79,178.75,21.12007991]
[1748370514065,0.55931539,178.79,178.76,21.12007991]
[1748370514563,0.55931539,178.79,178.75,21.12007991]
[1748370514959,0.55931539,178.79,178.76,21.12007991]
[1748370515367,0.55931539,178.79,178.75,21.12007991]
[1748370515879,21.6793953,178.79,178.74,21.12007991]
[1748370516277,23.07768379,178.79,178.74,21.12007991]
[1748370516585,23.07768379,178.79,178.72,61.66]
[1748370516780,23.07768379,178.79,178.74,21.12007991]
[1748370521270,21.12007991,178.78,178.73,21.12007991]
[1748370521673,0.55937797,178.77,178.73,21.12007991]
[1748370524271,21.67945788,178.77,178.72,21.12007991]
[1748370524468,21.12007991,178.75,178.71,21.12007991]
[1748370524698,21.12007991,178.75,178.7,21.12007991]
[1748370525000,21.12007991,178.74,178.69,53.29767991]
[1748370525494,21.12007991,178.72,178.68,1.5411]
[1748370525703,21.12007991,178.72,178.67,21.12007991]
[1748370525902,21.67964568,178.71,178.66,21.12007991]
[1748370530409,0.55956577,178.71,178.67,21.12007991]
[1748370531892,21.12007991,178.71,178.67,21.12007991]
[1748370532288,21.12007991,178.71,178.65,83.37219542]
[1748370532492,21.12007991,178.71,178.67,21.12007991]
[1748370533600,0.55959709,178.7,178.67,21.12007991]
[1748370537595,14.08898985,178.77,178.69,21.12007991]
[1748370537596,0.55947185,178.74,178.69,21.12007991]
[1748370537787,21.67955176,178.74,178.69,21.12007991]
[1748370537990,21.12007991,178.73,178.69,21.12007991]
[1748370538416,21.12007991,178.73,178.68,21.12007991]
[1748370539300,0.55953446,178.72,178.68,21.12007991]
[1748370540510,21.67959341,178.73,178.68,21.12007991]
[1748370541010,0.5595135,178.73,178.69,21.12007991]
[1748370541209,1.95796615,178.76,178.69,21.12007991]
[1748370541410,21.12007991,178.74,178.69,21.12007991]
[1748370541986,1.95796615,178.76,178.65,166.7747]
[1748370541987,21.12007991,178.75,178.7,21.12007991]
[1748370542312,21.12007991,178.75,178.71,21.12007991]
[1748370542483,21.12007991,178.75,178.7,21.12007991]
[1748370542685,21.12007991,178.74,178.7,21.12007991]
[1748370543212,21.67956093,178.74,178.7,21.12007991]
[1748370543388,21.67956093,178.74,178.68,5.59641418]
[1748370543389,21.12007991,178.73,178.68,21.12007991]
[1748370543594,21.12007991,178.73,178.68,47.12007991]
[1748370544005,21.67956093,178.74,178.69,21.12007991]
[1748370545106,0.55948102,178.74,178.7,21.12007991]
[1748370545310,21.12007991,178.75,178.71,21.12007991]
[1748370546317,0.55940926,178.76,178.71,21.12007991]
[1748370546508,21.67954088,178.75,178.71,21.12007991]
[1748370547120,0.55934668,178.78,178.73,21.12007991]
[1748370547427,21.67942659,178.78,178.73,21.12007991]
[1748370547993,0.55944055,178.75,178.71,6.4577]
[1748370548214,0.55944055,178.75,178.71,27.57777991]
[1748370548404,21.67952046,178.75,178.71,6.4577]
[1748370548603,21.67952046,178.75,178.7,89.0]
[1748370548832,21.67952046,178.75,178.7,110.12007991]
[1748370551422,0.55944055,178.75,178.7,110.12007991]
[1748370551808,0.55944055,178.75,178.71,21.12007991]
[1748370552521,1.95773324,178.78,178.71,21.12007991]
[1748370552741,21.12007991,178.76,178.71,21.12007991]
[1748370553526,21.12007991,178.75,178.71,21.12007991]
[1748370554728,0.55947185,178.74,178.69,35.66]
[1748370555023,0.55947185,178.74,178.71,21.12007991]
[1748370556522,0.55947185,178.74,178.7,21.12007991]
[1748370556825,21.12007991,178.74,178.69,56.78007991]
[1748370557229,21.12007991,178.72,178.67,27.57777991]
[1748370557528,21.12007991,178.71,178.67,6.4577]
[1748370557898,21.12007991,178.71,178.66,47.12007991]
[1748370558325,21.12007991,178.71,178.66,26.0]
[1748370559108,0.55959709,178.7,178.66,26.0]
[1748370559807,0.5595735,178.71,178.67,21.12007991]
[1748370561332,0.5595735,178.71,178.68,21.12007991]
[1748370561534,0.5595735,178.71,178.67,21.12007991]
[1748370565439,21.67965341,178.71,178.66,21.12007991]
[1748370566842,21.12007991,178.69,178.64,26.0]
[1748370567038,21.12007991,178.69,178.64,82.78007991]
[1748370568036,0.55965972,178.68,178.64,47.12007991]
[1748370568238,0.55965972,178.68,178.63,95.0014]
[1748370568446,21.67973963,178.68,178.63,27.12147991]
[1748370569441,21.67973963,178.68,178.63,6.0014]
[1748370569642,21.67973963,178.68,178.63,27.12147991]
[1748370570419,21.12007991,178.67,178.62,84.35827991]
[1748370570616,21.12007991,178.67,178.62,26.0]
[1748370570927,21.12007991,178.67,178.62,47.12007991]
[1748370571137,21.12007991,178.65,178.6,12.932001]
[1748370571526,21.12007991,178.65,178.6,34.05208091]
[1748370571740,1.95880903,178.68,178.61,21.12007991]
[1748370571925,21.12007991,178.67,178.61,21.12007991]
[1748370572340,0.55972237,178.66,178.61,21.12007991]
[1748370572729,0.55972237,178.66,178.62,21.12007991]
[1748370576481,0.55972237,178.66,178.63,21.12007991]
[1748370576823,0.55972237,178.66,178.6,64.892001]
[1748370577054,21.67980228,178.66,178.61,21.12007991]
[1748370578167,21.12007991,178.62,178.6,3.232001]
[1748370578322,21.67995897,178.61,178.6,3.232001]
[1748370581338,21.67993818,178.62,178.6,3.232001]
[1748370584442,18.64964886,178.57,178.44,6.1206]
[1748370584659,21.12007991,178.48,178.44,6.1206]
[1748370585153,26.0,178.55,178.45,21.12007991]
[1748370585456,21.12007991,178.52,178.48,21.12007991]
[1748370586440,0.5601927,178.51,178.48,21.12007991]
[1748370586755,0.5601927,178.51,178.47,21.12007991]
[1748370587356,21.68027261,178.51,178.44,6.1206]
[1748370587563,21.68027261,178.51,178.46,21.12007991]
[1748370587771,0.5601927,178.51,178.47,21.12007991]
[1748370589437,0.5601927,178.51,178.44,11.72471141]
[1748370589661,0.5601927,178.51,178.47,21.12007991]
[1748370590570,21.68027261,178.51,178.46,21.12007991]
[1748370592465,1.40035686,178.53,178.44,41.8006]
[1748370592667,21.12007991,178.51,178.46,21.12007991]
[1748370593068,21.12007991,178.52,178.47,21.12007991]
[1748370593368,21.12007991,178.52,178.48,21.12007991]
[1748370593555,21.12007991,178.52,178.44,47.40457122]
[1748370593556,21.12007991,178.52,178.44,136.40457122]
[1748370593869,47.12007991,178.52,178.48,21.12007991]
[1748370594571,0.5601927,178.51,178.44,136.40457122]
[1748370594754,0.5601927,178.51,178.47,21.12007991]
[1748370595474,47.6802462,178.52,178.48,21.12007991]
[1748370595672,26.56016629,178.52,178.48,21.12007991]
[1748370595967,0.56013436,178.53,178.5,21.12007991]
[1748370596175,1.527,178.6,178.52,21.12007991]
[1748370596176,0.5600672,178.55,178.52,21.12007991]
[1748370596361,26.5600672,178.55,178.52,21.12007991]
[1748370596766,0.5600672,178.55,178.52,21.12007991]
[1748370597155,26.5600672,178.55,178.52,21.12007991]
[1748370597357,26.5600672,178.55,178.49,35.68]
[1748370597862,21.12007991,178.54,178.49,35.68]
[1748370598058,21.12007991,178.54,178.5,21.12007991]
[1748370598263,47.68014711,178.55,178.5,21.12007991]
[1748370598685,21.12007991,178.54,178.5,21.12007991]
[1748370598849,21.12007991,178.51,178.47,89.0]
[1748370599046,21.12007991,178.51,178.46,21.12007991]
[1748370599362,0.56012995,178.53,178.5,21.12007991]
[1748370599556,0.56012995,178.53,178.51,21.12007991]
[1748370599750,26.0,178.55,178.52,21.12007991]
[1748370599953,0.56003584,178.56,178.52,21.12007991]
[1748370600171,26.56003584,178.56,178.52,21.12007991]
[1748370600371,26.5599942,178.58,178.55,21.12007991]
[1748370600584,0.5599942,178.58,178.55,21.12007991]
[1748370600959,0.55994969,178.59,178.55,21.12007991]
[1748370601179,1.39965137,178.62,178.51,7.8307]
[1748370601180,21.12007991,178.62,178.57,21.12007991]
[1748370601378,0.55981638,178.63,178.56,35.68]
[1748370601565,0.55981638,178.63,178.6,21.12007991]
[1748370602862,0.55981638,178.63,178.56,35.68]
[1748370603273,21.67989629,178.63,178.59,21.12007991]
[1748370603455,21.67989629,178.63,178.56,35.68]
[1748370603655,23.07943724,178.63,178.59,21.12007991]
[1748370603877,1.95935733,178.63,178.6,21.12007991]
[1748370604070,1.95935733,178.63,178.59,21.12007991]
[1748370604277,23.07943724,178.63,178.59,21.12007991]
[1748370605056,1.95935733,178.63,178.59,21.12007991]
[1748370605669,23.07943724,178.63,178.59,21.12007991]
[1748370606689,1.95935733,178.63,178.59,21.12007991]
[1748370607060,1.95935733,178.63,178.6,21.12007991]
[1748370607686,1.95935733,178.63,178.59,21.12007991]
[1748370609658,23.07943724,178.63,178.58,21.12007991]
[1748370610285,1.95935733,178.63,178.59,21.12007991]
[1748370612569,0.55981638,178.63,178.6,21.12007991]
[1748370613272,0.55981638,178.63,178.59,21.12007991]
[1748370613469,1.95935733,178.63,178.59,21.12007991]
[1748370613672,23.07943724,178.63,178.58,21.12007991]
[1748370614177,1.95935733,178.63,178.59,21.12007991]
[1748370614492,26.0,178.51,178.39,5.60545596]
[1748370614799,47.12007991,178.5,178.44,21.12007991]
[1748370614969,47.12007991,178.5,178.4,35.66]
[1748370615165,47.12007991,178.5,178.45,21.12007991]
[1748370615588,0.56025547,178.49,178.45,21.12007991]
[1748370615765,26.56025547,178.49,178.46,21.12007991]
[1748370616387,26.56025547,178.49,178.43,6.0519]
[1748370616588,26.56025547,178.49,178.46,21.12007991]
[1748370617276,0.56025547,178.49,178.47,21.12007991]
[1748370617483,0.56022408,178.5,178.47,21.12007991]
[1748370621401,0.56022408,178.5,178.45,35.66]
[1748370621570,0.56022408,178.5,178.47,21.12007991]
[1748370621765,0.56022408,178.5,178.46,21.12007991]
[1748370623603,0.56022408,178.5,178.48,21.12007991]
[1748370623774,0.56022408,178.5,178.49,21.12007991]
[1748370625094,47.12007991,178.53,178.49,21.12007991]
[1748370625095,0.56016132,178.52,178.49,21.12007991]
[1748370625479,0.56016132,178.52,178.5,21.12007991]
[1748370625880,0.56016132,178.52,178.45,35.66]
[1748370625881,0.56016132,178.52,178.49,21.12007991]
[1748370627092,0.56016132,178.52,178.45,35.66]
[1748370627284,0.56016132,178.52,178.49,21.12007991]
[1748370627996,0.56016132,178.52,178.5,21.12007991]
[1748370632978,48.52029153,178.55,178.5,21.12007991]
[1748370633501,0.56009857,178.54,178.5,21.12007991]
[1748370634171,0.56009857,178.54,178.46,5.60343222]
[1748370634381,21.68017848,178.54,178.5,21.12007991]
[1748370634581,0.56009857,178.54,178.51,21.12007991]
[1748370636300,0.56009857,178.54,178.46,5.60340815]
[1748370636604,0.56009857,178.54,178.51,21.12007991]
[1748370639304,0.56009857,178.54,178.5,21.12007991]
[1748370640003,21.68017848,178.54,178.5,21.12007991]
[1748370640905,21.68017848,178.54,178.46,5.60342023]
[1748370641209,0.56009857,178.54,178.5,21.12007991]
[1748370641810,21.68017848,178.54,178.49,21.12007991]
[1748370643108,21.68017848,178.54,178.5,21.12007991]
[1748370643583,0.56009857,178.54,178.5,21.12007991]
[1748370647315,0.55987906,178.61,178.53,21.12007991]
[1748370647516,26.0,178.6,178.57,21.12007991]
[1748370647685,26.0,178.59,178.57,21.12007991]
[1748370648000,0.55987906,178.61,178.57,21.12007991]
[1748370648398,0.5598506,178.62,178.59,21.12007991]
[1748370648795,26.0,178.61,178.6,21.12007991]
[1748370648999,0.55982417,178.63,178.6,21.12007991]
[1748370649796,0.55982417,178.63,178.56,35.66]
[1748370650119,0.55982417,178.63,178.6,21.12007991]
[1748370656849,0.55982417,178.63,178.59,21.12007991]
[1748370658831,0.55982417,178.63,178.6,21.12007991]
[1748370659351,0.55972237,178.66,178.62,21.12007991]
[1748370659652,0.55972237,178.66,178.59,5.59932872]
[1748370659653,21.67980228,178.66,178.59,5.59932872]
[1748370659833,21.67980228,178.66,178.62,21.12007991]
[1748370660032,23.07910822,178.66,178.58,6.6469]
[1748370660232,21.12007991,178.65,178.6,21.12007991]
[1748370660654,21.12007991,178.65,178.58,6.6469]
[1748370660853,0.55981638,178.63,178.6,21.12007991]
[1748370661227,0.55981638,178.63,178.61,21.12007991]
[1748370663060,21.12007991,178.65,178.61,21.12007991]
[1748370663765,0.55969105,178.67,178.62,21.12007991]
[1748370663970,0.55969105,178.67,178.63,21.12007991]
[1748370664345,21.67977096,178.67,178.63,21.12007991]
[1748370665160,21.67977096,178.67,178.62,21.12007991]
[1748370665366,21.12007991,178.66,178.58,95.6469]
[1748370665535,21.12007991,178.65,178.61,21.12007991]
[1748370665731,0.5596284,178.69,178.64,21.12007991]
[1748370665960,0.5596284,178.69,178.66,21.12007991]
[1748370668861,21.12007991,178.67,178.6,1.6546]
[1748370669048,0.55978504,178.64,178.6,22.77467991]
[1748370669246,0.55978504,178.64,178.61,21.12007991]
[1748370670032,0.55978504,178.64,178.6,1.6546]
[1748370670251,0.55978504,178.64,178.61,21.12007991]
[1748370671360,0.55969105,178.67,178.63,21.12007991]
[1748370672350,21.67977096,178.67,178.63,21.12007991]
[1748370673845,0.55959709,178.7,178.66,21.12007991]
[1748370674089,0.55959709,178.7,178.68,21.12007991]
[1748370675258,0.55947185,178.74,178.69,21.12007991]
[1748370675558,0.55947185,178.74,178.71,21.12007991]
[1748370676752,0.55947185,178.74,178.67,7.12205286]
[1748370676951,21.12007991,178.73,178.69,21.12007991]
[1748370677140,1.95815149,178.74,178.7,21.12007991]
[1748370677759,0.55947185,178.74,178.71,21.12007991]
[1748370678365,0.55940926,178.76,178.72,21.12007991]
[1748370678537,0.55940926,178.76,178.73,21.12007991]
[1748370679151,21.12007991,178.78,178.68,35.6]
[1748370679152,1.5049,178.81,178.75,21.12007991]
[1748370679354,151.29808942,178.82,178.7,26.0]
[1748370679355,1.39808942,178.82,178.73,32.6122]
[1748370679648,21.12007991,178.81,178.76,21.12007991]
[1748370679846,23.07746483,178.81,178.73,68.2122]
[1748370680060,23.07746483,178.81,178.76,21.12007991]
[1748370680854,1.39813209,178.81,178.76,21.12007991]
[1748370681068,22.518212,178.81,178.76,21.12007991]
[1748370682063,23.07746483,178.81,178.76,21.12007991]
[1748370683751,21.12007991,178.77,178.73,42.2122]
[1748370683951,21.12007991,178.77,178.73,63.33227991]
[1748370684177,23.40329797,178.81,178.73,63.33227991]
[1748370684355,21.12007991,178.77,178.73,63.33227991]
[1748370684677,21.12007991,178.78,178.74,21.12007991]
[1748370684886,20.60703378,178.81,178.75,21.12007991]
[1748370686085,21.67942659,178.78,178.73,27.73227991]
[1748370686275,23.07779329,178.78,178.73,27.73227991]
[1748370687771,21.12007991,178.77,178.73,27.73227991]
[1748370688789,23.07779329,178.78,178.73,27.73227991]
[1748370689265,0.55934668,178.78,178.75,21.12007991]
[1748370690179,0.55934668,178.78,178.76,21.12007991]
[1748370690578,0.55934668,178.78,178.7,9.68]
[1748370690579,21.12007991,178.77,178.7,98.68]
[1748370690890,21.12007991,178.74,178.69,53.73227991]
[1748370691063,21.12007991,178.73,178.69,6.6122]
[1748370691460,21.12007991,178.73,178.69,27.73227991]
[1748370691870,20.60736224,178.78,178.72,21.12007991]
[1748370692079,20.60736224,178.78,178.69,6.6122]
[1748370692080,21.12007991,178.75,178.71,21.12007991]
[1748370692390,21.12007991,178.74,178.7,21.12007991]
[1748370692773,21.12007991,178.74,178.69,27.73227991]
[1748370693196,0.55950316,178.73,178.69,27.73227991]
[1748370693391,0.55950316,178.73,178.7,21.12007991]
[1748370694979,0.55937797,178.77,178.72,21.12007991]
[1748370695271,21.12007991,178.8,178.75,21.12007991]
[1748370695498,21.12007991,178.78,178.74,21.12007991]
[1748370696273,21.12007991,178.79,178.73,61.58]
[1748370696473,21.12007991,178.79,178.74,21.12007991]
[1748370696696,0.55934668,178.78,178.74,21.12007991]
[1748370696883,21.67942659,178.78,178.74,21.12007991]
[1748370697798,0.55934668,178.78,178.74,21.12007991]
[1748370697972,21.67942659,178.78,178.74,21.12007991]
[1748370699593,21.67942659,178.78,178.73,56.70007991]
[1748370700805,22.51844661,178.78,178.73,56.70007991]
[1748370701117,0.55931539,178.79,178.75,21.12007991]
[1748370702169,21.12007991,178.79,178.74,21.12007991]
[1748370703395,0.55934668,178.78,178.75,21.12007991]
[1748370707574,0.55934668,178.78,178.76,21.12007991]
[1748370709407,0.55931539,178.79,178.72,41.1753167]
[1748370709583,0.55931539,178.79,178.76,21.12007991]
[1748370710285,0.55931539,178.79,178.72,124.58]
[1748370710286,21.6793953,178.79,178.72,124.58]
[1748370710599,21.6793953,178.79,178.74,21.12007991]
[1748370713424,23.07768379,178.79,178.74,21.12007991]
[1748370714391,23.07768379,178.79,178.72,124.58]
[1748370714592,23.07768379,178.79,178.74,21.12007991]
[1748370715289,21.12007991,178.77,178.72,110.12007991]
[1748370715490,1.95760388,178.79,178.72,110.12007991]